bitfinex/quotes_ETHUSD_20250107
["timestamp","ask_amount","ask_price","bid_price","bid_amount"]
[1736272898039,0.0075,3447.1,3446.1,0.1600319]
[1736272898193,0.0075,3446.9,3446.0,0.03651897]
[1736272898740,0.0075,3446.8,3446.0,0.0075]
[1736272898895,0.0075,3447.1,3445.9,1.5638]
[1736272899099,0.0075,3447.0,3445.9,1.5638]
[1736272899311,2.90136,3446.7,3445.9,1.5638]
[1736272899803,0.0075,3446.6,3445.9,1.5638]
[1736272900550,0.0075,3447.1,3445.9,1.5638]
[1736272900751,2.99082,3447.3,3446.4,1.5682]
[1736272900931,2.90093,3447.2,3446.4,1.5682]
[1736272901095,0.0075,3447.1,3446.4,1.5682]
[1736272901613,0.0075,3447.2,3446.4,1.5682]
[1736272902638,2.90116,3446.9,3446.4,1.5682]
[1736272903299,0.0075,3446.8,3446.5,0.0075]
[1736272903506,0.0075,3446.8,3446.4,1.5682]
[1736272903701,2.90147,3446.6,3445.6,1.566]
[1736272903941,1.5492,3446.9,3445.6,1.566]
[1736272903942,4.84906011,3446.9,3445.6,1.566]
[1736272904142,0.0075,3446.3,3445.6,1.566]
[1736272904446,0.0075,3446.3,3445.7,0.0075]
[1736272904605,2.90145,3446.6,3445.7,0.0075]
[1736272904809,0.0075,3446.5,3445.7,0.0075]
[1736272905210,2.90139,3446.7,3445.7,0.0075]
[1736272905514,0.0075,3446.6,3445.7,0.0075]
[1736272905714,0.0075,3446.6,3445.7,2.93865798]
[1736272905915,0.0075,3446.6,3446.0,4.51789]
[1736272906134,5.59163561,3447.3,3446.2,0.0075]
[1736272906135,2.901,3447.1,3446.2,0.0075]
[1736272906675,0.0075,3447.0,3446.2,0.0075]
[1736272906878,0.0075,3447.0,3446.1,0.0075]
[1736272907250,0.0075,3447.0,3446.0,1.6085]
[1736272907577,0.0075,3446.4,3446.0,1.6085]
[1736272907793,0.0075,3446.2,3446.0,1.6085]
[1736272907938,0.0075,3446.8,3445.6,1.581]
[1736272908140,0.0075,3445.6,3444.5,1.581]
[1736272908381,0.0075,3445.6,3444.7,2.90295]
[1736272908561,0.0075,3445.6,3444.5,1.581]
[1736272908882,0.0075,3445.6,3444.7,1.581]
[1736272909085,0.0075,3445.1,3444.7,1.581]
[1736272909251,0.0075,3445.3,3444.7,1.581]
[1736272909454,2.91003,3445.3,3444.7,1.581]
[1736272910489,2.90224,3445.7,3444.7,1.581]
[1736272910983,2.90985,3445.5,3444.8,0.0075]
[1736272911342,2.90968,3445.7,3444.8,0.0075]
[1736272912448,0.0075,3445.5,3444.8,0.0075]
[1736272912653,0.0075,3445.7,3444.7,1.581]
[1736272912851,0.0075,3445.5,3444.7,1.581]
[1736272913043,0.0075,3445.3,3444.0,1.581]
[1736272913264,0.0075,3444.7,3444.0,1.581]
[1736272913543,0.0075,3444.7,3444.1,0.0075]
[1736272913766,0.0075,3444.7,3444.0,1.581]
[1736272914084,0.0075,3444.7,3444.1,0.0075]
[1736272914239,0.0075,3444.9,3444.1,0.0075]
[1736272914444,0.0075,3444.8,3444.1,0.0075]
[1736272915785,0.0075,3444.4,3444.0,1.581]
[1736272916287,0.0075,3444.6,3444.0,1.581]
[1736272916945,0.0075,3444.5,3444.0,1.581]
[1736272917492,0.0075,3444.6,3444.0,1.581]
[1736272917850,2.91064,3444.6,3444.0,1.581]
[1736272918050,0.0075,3444.5,3444.0,1.581]
[1736272919982,0.0075,3444.6,3444.0,1.581]
[1736272920545,2.91063,3444.6,3444.0,1.581]
[1736272920968,0.0075,3444.3,3443.6,1.5368]
[1736272921170,0.0075,3444.2,3443.6,1.5368]
[1736272921346,0.0075,3444.0,3443.6,1.5368]
[1736272921546,0.59125492,3444.7,3443.6,1.5368]
[1736272921766,2.90336,3444.3,3443.6,1.5368]
[1736272921970,0.0075,3444.5,3443.6,1.5368]
[1736272922282,0.0075,3444.2,3443.6,1.5368]
[1736272922483,0.0075,3444.0,3443.6,1.5368]
[1736272922659,0.0075,3444.0,3443.1,1.6454]
[1736272922847,2.9111,3444.0,3443.1,1.6454]
[1736272923050,0.0075,3443.8,3443.1,1.6454]
[1736272923282,0.0075,3443.4,3442.5,1.6454]
[1736272923465,0.0075,3443.3,3442.5,1.6454]
[1736272923849,0.0075,3443.0,3442.5,1.6454]
[1736272924400,0.0075,3443.0,3442.2,2.90511]
[1736272924401,2.90363,3444.0,3443.0,2.90436]
[1736272924548,4.73595,3444.2,3443.1,2.90435]
[1736272924744,4.73595,3444.2,3442.8,0.0075]
[1736272924745,0.0075,3443.8,3442.8,0.03654238]
[1736272924985,0.0075,3443.8,3442.7,4.6454]
[1736272924986,0.0075,3443.8,3443.0,0.0075]
[1736272925148,0.0075,3443.8,3442.7,1.6454]
[1736272925581,0.0075,3443.4,3442.7,1.6454]
[1736272926205,0.0075,3443.2,3442.7,1.6454]
[1736272926412,1.5697,3443.4,3442.3,1.6665]
[1736272926601,1.5697,3443.4,3441.6,2.90555]
[1736272926602,4.40379,3444.1,3443.0,2.90442]
[1736272926790,2.90375,3443.9,3443.0,0.0075]
[1736272927032,0.0075,3444.0,3443.0,0.0075]
[1736272927208,0.0075,3444.0,3443.0,0.03654176]
[1736272927520,1.20872688,3444.4,3444.3,2.90334]
[1736272927830,1.20872688,3444.4,3444.0,4.47435]
[1736272927831,1.20872688,3444.6,3444.1,0.03653375]
[1736272928036,1.20872688,3444.6,3444.5,2.91067]
[1736272928184,1.20872688,3444.6,3444.0,1.5708]
[1736272928185,1.20872688,3444.6,3444.0,4.47437]
[1736272928526,1.20872688,3444.6,3444.1,3.0]
[1736272928732,0.0075,3444.5,3444.2,0.0075]
[1736272928877,1.20872688,3444.6,3444.5,2.91067]
[1736272929083,2.90221,3445.7,3444.6,2.90306]
[1736272929379,0.0075,3445.3,3444.4,4.53993]
[1736272929885,2.91001,3445.3,3444.4,1.6367]
[1736272930282,0.56699576,3445.6,3444.4,1.6367]
[1736272930580,2.91035,3444.9,3443.9,2.90367]
[1736272931421,2.91013,3445.2,3443.8,1.53713423]
[1736272931648,0.0075,3445.2,3444.3,0.0075]
[1736272932009,0.0075,3445.3,3444.7,0.0075]
[1736272932395,0.56699576,3445.6,3444.7,0.03652854]
[1736272932703,0.0075,3445.5,3444.9,0.0075]
[1736272933103,2.9101,3445.2,3444.6,1.622]
[1736272933303,0.0075,3445.1,3444.6,1.622]
[1736272933539,0.0075,3444.9,3444.3,4.622]
[1736272933745,2.90282,3445.0,3444.3,1.622]
[1736272934195,0.56699576,3445.6,3444.4,0.0075]
[1736272934399,3.39389823,3446.1,3444.6,1.6308]
[1736272934641,0.57376143,3446.0,3444.9,0.0075]
[1736272934799,3.47570143,3446.0,3444.9,2.91034]
[1736272934999,3.39389823,3446.1,3445.4,0.0075]
[1736272935000,0.09,3446.1,3445.4,0.0075]
[1736272935537,1.29872688,3446.3,3445.5,2.90225]
[1736272935748,0.09,3446.3,3445.7,0.0075]
[1736272936335,0.09,3446.3,3445.5,0.0075]
[1736272936700,0.09,3446.3,3445.5,2.9098]
[1736272936907,0.09,3446.3,3445.6,0.0075]
[1736272937304,0.66004212,3446.7,3446.0,0.0075]
[1736272937530,0.09,3446.7,3446.1,2.90179]
[1736272937847,1.29872688,3447.5,3446.6,0.0075]
[1736272938056,0.09,3447.5,3446.8,0.0075]
[1736272938602,0.09,3447.5,3446.5,0.0075]
[1736272938804,3.39389823,3447.5,3446.5,0.0075]
[1736272939120,2.90091,3447.2,3446.5,0.0075]
[1736272939306,2.90091,3447.2,3446.3,1.5678]
[1736272939509,2.82812688,3448.6,3446.8,0.0075]
[1736272939704,1.20872688,3448.6,3447.0,1.5882]
[1736272939952,4.10844688,3448.6,3447.2,1.5807]
[1736272940102,4.10844688,3448.6,3447.4,2.90072]
[1736272940448,1.20872688,3448.6,3447.6,2.90806]
[1736272940603,1.20872688,3448.6,3448.0,0.0075]
[1736272941109,3.02181722,3449.1,3448.0,0.0075]
[1736272941110,1.20872688,3449.2,3448.0,0.03649819]
[1736272941307,1.20872688,3449.2,3448.3,3.0075]
[1736272941555,1.20872688,3449.2,3448.5,0.0075]
[1736272941716,1.20872688,3449.2,3448.7,0.0075]
[1736272941916,0.36356721,3449.4,3449.3,1.5331]
[1736272942137,0.36356721,3449.4,3449.3,11.72639873]
[1736272942341,0.36356721,3449.4,3449.3,11.17639873]
[1736272942518,0.36356721,3449.4,3449.3,8.86840687]
[1736272942701,0.36356721,3449.4,3449.3,4.5331]
[1736272943048,0.36356721,3449.4,3448.4,1.5638]
[1736272943204,0.36356721,3449.4,3448.9,4.545]
[1736272943406,4.45486,3450.8,3449.7,0.0075]
[1736272943718,1.5569,3450.8,3450.3,3.74416873]
[1736272944043,3.98045377,3451.2,3450.3,3.74416873]
[1736272944956,2.91036128,3451.6,3450.8,3.74416873]
[1736272945150,2.89764,3451.1,3450.8,3.74416873]
[1736272945550,2.89772,3451.0,3450.8,3.74416873]
[1736272945734,2.89779,3450.9,3450.8,3.74416873]
[1736272946107,2.89742,3451.4,3450.8,3.74416873]
[1736272946310,2.89772,3451.0,3450.8,3.74416873]
[1736272946709,2.89742,3451.4,3450.8,3.74416873]
[1736272946912,2.89779,3450.9,3450.8,3.74416873]
[1736272947143,0.01310128,3451.6,3450.9,0.0075]
[1736272947303,1.5181,3451.7,3450.9,0.0075]
[1736272947304,2.89738,3451.4,3450.9,0.0075]
[1736272947509,2.89722,3451.6,3450.9,0.0075]
[1736272947750,1.5181,3451.7,3450.9,0.0075]
[1736272948051,2.89695,3452.0,3451.3,3.74416873]
[1736272948253,2.89704,3451.8,3451.3,3.74416873]
[1736272948459,5.04664178,3452.2,3451.3,3.74416873]
[1736272948754,2.89734,3451.5,3451.3,3.74416873]
[1736272948957,2.89687,3452.0,3450.8,3.74416873]
[1736272949160,2.89762,3451.2,3450.8,3.74416873]
[1736272949725,5.04667178,3452.2,3450.9,0.03647855]
[1736272949928,2.14991178,3452.2,3451.5,3.74416873]
[1736272950240,1.5968,3450.6,3448.5,3.74416873]
[1736272950612,1.5968,3450.6,3448.2,2.90001]
[1736272950613,4.49492,3450.6,3449.2,2.8992]
[1736272950815,0.285,3450.9,3449.6,3.0]
[1736272951132,0.285,3450.9,3449.7,0.0289849]
[1736272951133,2.89805,3450.6,3449.7,0.0289849]
[1736272951331,0.285,3450.9,3449.5,3.74416873]
[1736272951649,2.89838,3450.3,3448.8,2.89953]
[1736272951854,2.89838,3450.3,3448.9,0.02898759]
[1736272952061,2.89838,3450.3,3449.0,0.0075]
[1736272952212,2.89838,3450.3,3449.0,3.353196]
[1736272952623,2.89809,3450.6,3449.2,3.0075]
[1736272952830,2.89809,3450.6,3449.4,0.0075]
[1736272953041,0.285,3450.9,3449.4,0.0075]
[1736272953244,0.285,3450.9,3449.6,0.0075]
[1736272953565,2.89823,3450.4,3449.6,0.0075]
[1736272953711,2.8983,3450.3,3449.6,0.0075]
[1736272954271,1.6629,3450.6,3448.5,1.5176]
[1736272954430,2.89865,3449.9,3448.5,1.5176]
[1736272954767,1.5724,3449.7,3448.5,1.5176]
[1736272954915,2.89917,3449.3,3448.5,1.5176]
[1736272955259,5.0448433,3449.7,3448.5,1.5176]
[1736272955482,2.89935,3449.1,3448.5,1.5176]
[1736272955614,2.89935,3449.1,3447.7,1.5729]
[1736272955811,2.89897,3449.5,3447.7,1.5729]
[1736272956025,2.89985,3448.5,3447.7,1.5729]
[1736272956256,1.5981,3448.9,3447.7,1.5729]
[1736272956464,2.89949,3448.9,3447.8,0.02900135]
[1736272956634,2.89929,3449.2,3447.7,1.5729]
[1736272956958,4.49724,3449.3,3447.8,0.03650043]
[1736272957165,1.5981,3449.3,3447.7,1.5729]
[1736272957329,2.89957,3448.8,3447.7,1.5729]
[1736272957530,0.59375552,3449.0,3447.9,3.0]
[1736272957730,1.5981,3449.3,3447.8,0.0075]
[1736272958028,6.64338873,3449.2,3447.7,1.5729]
[1736272958232,2.89952,3448.9,3447.7,1.5729]
[1736272958567,2.89979,3448.6,3447.7,1.5729]
[1736272958856,2.89979,3448.6,3447.8,0.0075]
[1736272959020,2.8999,3448.4,3447.8,0.0075]
[1736272959219,2.90008,3448.2,3447.7,1.5729]
[1736272959425,1.6185,3448.4,3446.9,1.501]
[1736272959651,2.90047,3447.8,3446.9,1.501]
[1736272959920,2.90065,3447.5,3446.9,1.501]
[1736272960958,0.57951915,3447.8,3445.5,1.6452]
[1736272961127,0.57951915,3447.8,3446.0,0.0075]
[1736272961335,2.90056,3447.6,3445.9,1.6452]
[1736272961537,2.90124,3446.8,3445.9,1.6452]
[1736272961732,3.45082,3447.3,3445.9,1.6452]
[1736272961954,2.90167,3446.3,3445.1,1.6177]
[1736272962131,2.90146,3446.6,3445.2,0.0075]
[1736272962331,2.90124,3446.8,3445.4,2.9099]
[1736272962652,1.5155,3446.0,3444.3,1.55]
[1736272962818,2.90252,3445.3,3444.3,1.55]
[1736272963030,1.8005,3446.0,3444.4,0.02902909]
[1736272963360,2.90206,3445.9,3444.3,1.55]
[1736272963558,1.8005,3446.0,3444.4,0.155]
[1736272963559,0.58062212,3445.7,3444.4,0.155]
[1736272963761,0.58062212,3445.7,3444.5,0.02902724]
[1736272964075,3.48282212,3445.7,3444.4,0.155]
[1736272964278,0.58062212,3445.7,3444.6,2.90308]
[1736272964478,4.41743,3446.0,3444.7,3.0]
[1736272964631,0.56727048,3446.0,3445.0,0.0075]
[1736272964830,1.6017,3446.4,3445.0,0.0075]
[1736272965280,2.90188,3446.1,3445.0,0.0075]
[1736272965487,2.90208,3445.8,3445.0,0.0075]
[1736272965680,2.9019,3446.1,3445.0,0.0075]
[1736272965837,2.90166,3446.3,3445.0,3.03652386]
[1736272966178,2.90187,3446.1,3445.0,0.0075]
[1736272966880,2.90187,3446.1,3445.0,0.03652386]
[1736272967194,2.90128,3446.8,3445.1,1.5874]
[1736272967348,0.56777641,3447.2,3445.9,0.0075]
[1736272967551,0.285,3447.7,3446.0,1.5874]
[1736272967754,0.285,3447.7,3446.3,0.0075]
[1736272967951,0.57823484,3447.6,3446.0,1.5874]
[1736272968165,2.90117,3446.9,3446.0,1.5874]
[1736272968369,2.90146,3446.6,3446.0,1.5874]
[1736272968671,2.90146,3446.6,3445.5,1.6248]
[1736272968988,2.90104,3447.1,3445.5,1.6248]
[1736272968989,2.90162,3446.4,3445.5,1.6248]
[1736272969546,2.90166,3446.3,3445.5,1.6248]
[1736272969749,1.5892,3446.5,3445.5,1.6173]
[1736272969942,2.90194,3446.0,3445.5,1.6173]
[1736272970166,2.90175,3446.2,3445.6,0.0075]
[1736272970485,2.90161,3446.4,3445.6,0.0075]
[1736272971966,2.90182,3446.2,3445.5,1.6173]
[1736272973089,2.90183,3446.1,3445.5,1.6173]
[1736272973991,0.57579454,3446.5,3445.5,1.6173]
[1736272974199,0.57579454,3446.5,3445.6,0.0075]
[1736272974403,3.47732454,3446.5,3445.6,0.0075]
[1736272974560,0.57579454,3446.5,3445.6,3.0075]
[1736272974766,1.5018,3447.0,3445.7,0.752712]
[1736272974967,2.90158,3446.4,3445.5,1.6173]
[1736272975210,2.90158,3446.4,3445.6,0.0075]
[1736272976369,0.56693754,3446.9,3445.9,0.0075]
[1736272976570,2.90067,3447.5,3446.6,0.0075]
[1736272976817,4.51311,3448.0,3446.6,0.0075]
[1736272976818,2.90081,3447.4,3446.6,0.0075]
[1736272976973,2.90074,3447.4,3446.6,0.0075]
[1736272978323,1.6128,3448.0,3446.8,0.0075]
[1736272978510,2.90091,3447.2,3446.5,1.5568]
[1736272978906,2.90061,3447.6,3446.5,1.5568]
[1736272979109,2.9011,3447.0,3446.5,1.5568]
[1736272979438,2.90115,3447.0,3446.5,1.5568]
[1736272979578,0.55,3447.7,3446.5,1.5568]
[1736272979579,2.9012,3446.9,3446.5,1.5568]
[1736272979779,1.5468,3447.2,3446.0,1.6275]
[1736272980097,2.90141,3446.6,3446.0,1.6275]
[1736272980597,0.57376192,3446.7,3445.0,1.5552]
[1736272980915,0.57376192,3446.7,3445.1,2.8611894]
[1736272981218,2.90171,3446.3,3445.4,0.0075]
[1736272981431,3.47514192,3446.7,3445.4,0.03652186]
[1736272981432,2.90152,3446.5,3445.4,0.03652186]
[1736272981594,0.57376192,3446.7,3445.6,0.0075]
[1736272981792,2.90141,3446.6,3445.6,0.0075]
[1736272982194,2.90141,3446.6,3445.5,4.5239]
[1736272982195,2.90144,3446.6,3445.8,0.0075]
[1736272982407,3.30115405,3446.8,3445.5,1.5239]
[1736272982699,2.90199,3446.0,3445.5,1.5239]
[1736272983096,1.543,3446.2,3444.6,1.5205]
[1736272983626,2.90222,3445.7,3444.6,1.5205]
[1736272983827,0.58857355,3445.9,3444.7,0.02902876]
[1736272983994,2.90206,3445.9,3444.7,2.93202876]
[1736272984197,4.4448,3446.2,3444.9,0.0075]
[1736272984395,1.543,3446.2,3444.9,0.0075]
[1736272984595,1.543,3446.2,3444.6,4.42358]
[1736272984596,1.543,3446.2,3444.6,1.5205]
[1736272984799,0.55,3445.9,3444.6,1.5205]
[1736272984981,2.90281,3445.0,3444.6,1.5205]
[1736272985304,1.6597,3445.4,3444.6,1.5205]
[1736272985523,2.90289,3444.9,3443.8,1.5426]
[1736272985826,2.90289,3444.9,3443.8,4.5426]
[1736272985999,2.90296,3444.8,3443.8,7.22111622]
[1736272986193,2.90296,3444.8,3443.9,0.02903378]
[1736272986392,2.90296,3444.8,3443.8,4.5426]
[1736272986599,2.90296,3444.8,3443.9,0.0075]
[1736272986820,2.90296,3444.8,3443.8,4.5426]
[1736272987012,2.90296,3444.8,3444.0,0.0075]
[1736272987534,2.90258,3445.2,3444.0,0.0075]
[1736272987732,2.90279,3445.0,3444.0,0.0075]
[1736272988413,1.6597,3445.4,3444.0,0.0075]
[1736272988414,2.90259,3445.2,3444.0,0.0075]
[1736272988629,1.5209,3445.8,3444.2,0.0075]
[1736272988788,1.5209,3445.8,3444.1,1.5064]
[1736272988986,0.57655992,3445.4,3444.5,0.0075]
[1736272989374,2.90191,3446.0,3444.9,2.91033]
[1736272989491,2.90208,3445.8,3444.9,0.0075]
[1736272990293,2.90208,3445.8,3444.9,35.0075]
[1736272990716,2.90208,3445.8,3444.9,3.0075]
[1736272991440,3.04569743,3447.1,3445.3,1.6024]
[1736272991441,2.90159,3446.4,3445.3,1.6024]
[1736272991987,2.90159,3446.4,3445.3,4.50489]
[1736272992290,2.90166,3446.3,3445.3,4.50489]
[1736272992491,2.90152,3446.5,3445.3,4.50489]
[1736272992800,0.57429694,3446.6,3445.5,0.0075]
[1736272992993,2.90165,3446.4,3445.5,0.46088299]
[1736272993194,2.90165,3446.4,3445.5,0.0075]
[1736272994328,2.90133,3446.7,3445.7,3.0]
[1736272994540,2.90133,3446.7,3445.8,0.03651787]
[1736272994725,0.0075,3446.6,3445.9,1.5844]
[1736272994927,0.0075,3446.6,3446.2,2.90924]
[1736272995130,0.284,3447.5,3446.5,1.5844]
[1736272995329,0.0075,3447.1,3446.5,1.5844]
[1736272996045,0.0075,3447.3,3446.5,1.5844]
[1736272996341,0.0075,3446.9,3446.5,1.5844]
[1736272996543,0.0075,3446.7,3446.5,1.5844]
[1736272997373,2.90855,3447.1,3446.5,1.5844]
[1736272997528,0.0075,3447.0,3446.5,1.5844]
[1736272998080,2.90043,3447.8,3446.6,2.93791292]
[1736272998242,0.58266302,3447.6,3447.1,0.0075]
[1736272998442,2.89986,3448.5,3447.5,1.5006]
[1736272998443,2.89999,3448.3,3447.5,1.5006]
[1736272998633,2.89999,3448.3,3447.6,0.0075]
[1736272998988,0.0075,3448.2,3447.6,0.03650258]
[1736272999774,0.0075,3448.3,3447.6,0.03650258]
[1736272999977,0.0075,3448.3,3447.6,0.78029184]
[1736273000269,0.09,3448.9,3447.9,0.0075]
[1736273000457,0.0075,3448.8,3447.9,0.03649946]
[1736273000691,0.0075,3448.8,3448.1,0.0075]
[1736273000860,0.0075,3448.8,3448.1,0.03649789]
[1736273001057,0.0075,3448.8,3448.1,2.93660789]
[1736273001267,0.09,3449.2,3448.9,0.0075]
[1736273001466,1.29749739,3449.7,3448.8,1.5881]
[1736273001629,2.89921,3449.3,3448.8,1.5881]
[1736273001833,0.0075,3449.2,3448.8,1.5881]
[1736273002159,0.0075,3449.2,3448.4,1.5104]
[1736273002357,0.0075,3448.8,3448.4,1.5104]
[1736273002573,2.90711,3448.8,3448.4,1.5104]
[1736273003173,0.0075,3449.0,3448.4,1.5104]
[1736273003381,0.0075,3448.4,3447.9,1.5394011]
[1736273003583,2.90741,3448.4,3447.9,1.5104]
[1736273004479,2.90741,3448.4,3446.7,1.20749739]
[1736273004480,0.0075,3447.9,3446.9,2.90113]
[1736273004681,0.0075,3447.9,3447.2,1.5701]
[1736273004894,0.0075,3447.9,3447.0,0.02900547]
[1736273004895,0.0075,3447.9,3447.6,1.6367]
[1736273005211,4.45812,3449.0,3447.7,0.0075]
[1736273005212,2.90741,3448.4,3447.7,0.0075]
[1736273005381,0.0075,3448.2,3447.7,0.0075]
[1736273006604,0.0075,3448.7,3447.7,0.0075]
[1736273006809,0.0075,3448.4,3447.7,0.0075]
[1736273007106,0.0075,3448.4,3447.6,1.6657025]
[1736273007107,0.0075,3448.4,3448.1,0.0075]
[1736273007281,2.8994,3449.0,3448.3,0.0075]
[1736273007477,0.0075,3448.9,3448.3,0.0075]
[1736273007883,0.0075,3448.9,3448.3,0.79370666]
[1736273008104,1.29749739,3449.7,3448.3,0.79370666]
[1736273008281,1.29749739,3449.7,3448.5,0.0075]
[1736273008496,1.29749739,3449.7,3449.0,0.0075]
[1736273008680,0.0075,3449.6,3449.0,0.03649027]
[1736273009397,0.0075,3449.6,3449.0,0.0075]
[1736273009600,2.90639,3449.6,3448.9,1.6308]
[1736273009981,0.0075,3449.6,3448.9,1.6308]
[1736273010565,0.0075,3449.6,3448.9,0.49497039]
[1736273010769,0.0075,3449.6,3449.5,1.5922]
[1736273011012,0.0075,3449.6,3449.5,1.62118629]
[1736273011211,0.0075,3449.6,3449.5,4.62118629]
[1736273011700,0.0075,3449.6,3449.5,1.5922]
[1736273012417,0.0075,3449.6,3449.5,1.5847]
[1736273012910,0.0075,3449.6,3449.1,1.6442]
[1736273014718,0.0075,3449.6,3448.6,1.5055]
[1736273014923,0.09,3449.7,3448.6,1.5055]
[1736273014924,0.0075,3449.1,3448.6,1.5055]
[1736273015070,0.0075,3448.9,3448.3,1.6139]
[1736273015915,0.0075,3448.8,3448.3,1.6139]
[1736273017218,0.0075,3449.0,3448.3,1.6139]
[1736273017419,0.0075,3449.0,3448.7,3.0075]
[1736273017602,0.0075,3449.0,3448.9,0.0075]
[1736273017775,2.90655,3449.4,3448.3,1.77818981]
[1736273018401,2.90655,3449.4,3448.4,3.0075]
[1736273019808,2.24910729,3449.7,3448.5,0.02899427]
[1736273020121,0.0075,3449.2,3448.3,4.6139]
[1736273020331,0.0075,3449.2,3448.3,1.6139]
[1736273020489,2.90675,3449.2,3448.3,1.6139]
[1736273020699,0.0075,3449.0,3448.4,0.0075]
[1736273021319,0.0075,3449.2,3448.4,0.0075]
[1736273022424,0.0075,3449.1,3448.4,0.0075]
[1736273023209,2.8989,3449.6,3448.6,0.0075]
[1736273023418,2.89905,3449.4,3448.6,0.0075]
[1736273023625,0.0075,3449.3,3448.6,0.0075]
[1736273023792,0.0075,3449.3,3448.4,0.0075]
[1736273024215,0.0075,3449.3,3448.4,0.03649424]
[1736273024392,0.0075,3449.3,3448.4,0.0075]
[1736273024808,2.24910729,3449.7,3448.4,0.0075]
[1736273025036,0.09,3449.7,3448.9,1.6643]
[1736273025194,0.09,3449.7,3449.0,0.0364907]
[1736273025535,0.0075,3449.6,3449.0,0.0364907]
[1736273026220,0.0075,3449.6,3449.0,0.49651977]
[1736273026409,0.0075,3449.6,3449.1,0.0075]
[1736273026613,0.0075,3449.6,3449.3,0.0075]
[1736273026813,0.0075,3449.6,3449.5,0.0075]
[1736273027007,0.0075,3449.6,3449.5,1.70078666]
[1736273027562,0.0075,3449.6,3449.5,5.35974833]
[1736273027846,0.0075,3449.6,3449.5,8.35974833]
[1736273028010,0.0075,3449.6,3449.5,8.33076167]
[1736273028455,0.0075,3449.6,3449.5,5.42429167]
[1736273028660,0.0075,3449.6,3449.5,4.6643]
[1736273030458,0.0075,3449.6,3449.5,3.0]
[1736273031708,0.0075,3449.6,3449.5,7.53485411]
[1736273031908,0.0075,3449.6,3449.5,7.50587]
[1736273032210,0.0075,3449.6,3449.5,4.6069]
[1736273033557,0.0075,3449.6,3449.0,1.5474]
[1736273033761,0.0075,3449.6,3449.1,0.0075]
[1736273033928,2.90646,3449.6,3448.3,2.89989]
[1736273034269,0.0075,3449.4,3448.4,3.634623]
[1736273034430,0.0075,3449.4,3448.5,2.89979]
[1736273034630,0.0075,3449.4,3448.6,3.02899226]
[1736273034832,2.98883,3449.7,3448.6,3.02899226]
[1736273035160,0.09,3449.7,3448.8,3.0075]
[1736273035327,0.0075,3449.6,3448.9,0.02899151]
[1736273035522,0.0075,3449.6,3449.0,0.0075]
[1736273036454,2.90638,3449.6,3448.7,1.5474]
[1736273036611,0.0075,3449.6,3448.7,1.5474]
[1736273036818,0.0075,3449.3,3448.8,0.0075]
[1736273037163,0.0075,3449.1,3448.8,0.0075]
[1736273037362,0.0075,3449.1,3448.5,0.0075]
[1736273038752,0.0075,3449.1,3447.9,2.90026]
[1736273038753,0.0075,3449.1,3448.2,3.0]
[1736273039051,2.90687,3449.1,3448.1,0.0075]
[1736273039469,0.0075,3448.9,3448.1,0.0075]
[1736273039978,0.0075,3449.1,3448.1,0.0075]
[1736273040538,0.0075,3448.9,3448.0,1.632]
[1736273041484,0.0075,3448.9,3448.0,4.53221]
[1736273041632,0.0075,3449.1,3448.2,3.0]
[1736273041944,0.0075,3449.1,3448.3,0.0075]
[1736273042772,0.0075,3449.1,3448.3,3.03649652]
[1736273042963,0.0075,3449.1,3448.5,0.0075]
[1736273043538,2.90681,3449.1,3448.4,0.0075]
[1736273044376,0.0075,3449.1,3448.3,0.03649618]
[1736273044594,0.0075,3449.1,3448.3,0.0075]
[1736273044881,0.0075,3449.1,3448.5,1.0]
[1736273046401,0.0075,3448.9,3448.5,1.0]
[1736273046901,0.5575,3448.9,3448.5,1.0]
[1736273047210,4.47402,3448.6,3448.5,1.0]
[1736273048390,1.5743,3448.6,3448.5,2.0]
[1736273048699,0.0075,3448.6,3448.5,2.0]
[1736273050110,0.0075,3448.6,3448.5,2.0075]
[1736273050274,0.0075,3448.6,3448.5,7.93630427]
[1736273050483,0.0075,3448.6,3448.5,9.44771]
[1736273052002,1.20749739,3449.6,3449.5,2.89897]
[1736273052173,1.20749739,3449.6,3449.5,7.56877]
[1736273052360,1.20749739,3449.6,3449.5,8.94510645]
[1736273052768,0.0075,3449.6,3449.5,8.94510645]
[1736273052969,1.20749739,3450.3,3449.6,5.90638]
[1736273053195,1.29749739,3450.3,3450.2,5.90588]
[1736273053395,1.29749739,3450.3,3450.2,7.49448]
[1736273053565,1.29749739,3450.3,3450.2,8.86333245]
[1736273053767,0.09,3450.3,3450.2,8.86333245]
[1736273053964,0.0975,3450.3,3450.2,8.86333245]
[1736273054202,0.0975,3450.3,3450.2,9.14633245]
[1736273054402,0.09,3450.3,3450.2,9.14633245]
[1736273054708,1.20749739,3451.4,3450.2,2.95745245]
[1736273054917,1.20749739,3451.4,3450.4,2.89813]
[1736273055214,0.0075,3451.4,3450.6,0.0075]
[1736273055413,0.0075,3451.4,3450.6,0.03647522]
[1736273055612,2.89721,3451.6,3450.6,0.0075]
[1736273055906,0.0075,3451.5,3450.8,0.0075]
[1736273056504,0.0075,3451.6,3450.4,2.90569]
[1736273056705,0.0075,3451.6,3450.3,3.91513569]
[1736273056881,0.0075,3451.3,3450.4,0.02897673]
[1736273057081,0.0075,3451.3,3450.5,0.0075]
[1736273057339,0.0075,3451.7,3450.5,0.56152124]
[1736273057666,0.0075,3451.7,3450.3,3.81341569]
[1736273057667,0.0075,3451.7,3450.6,0.02897671]
[1736273057975,0.0075,3450.9,3450.1,1.20749739]